[Event "*** Titled Tuesday 3|2 Blitz"]
[Site "Chess.com"]
[Date "2016.06.07"]
[Round "4"]
[White "saraswathii"]
[Black "eltenedor"]
[Result "1-0"]
[WhiteElo "1956"]
[BlackElo "2044"]
[TimeControl "180+2"]
[EndTime "11:48:53 PDT"]
[Termination "saraswathii won by resignation"]

1. e4 {[%clk 0:03:01.9]} 1... d5 {[%clk 0:02:58.7]} 2. exd5 {[%clk 0:03:02.3]}
2... Nf6 {[%clk 0:02:59.7]} 3. d3 {[%clk 0:03:00.6]} 3... Nxd5 {[%clk
0:02:52.9]} 4. Nf3 {[%clk 0:03:00.9]} 4... Nc6 {[%clk 0:02:46.9]} 5. g3 {[%clk
0:02:31.4]} 5... Bg4 {[%clk 0:02:43.6]} 6. Bg2 {[%clk 0:02:29.1]} 6... e6 {[%clk
0:02:41.8]} 7. O-O {[%clk 0:02:27.3]} 7... Bc5 {[%clk 0:02:40.4]} 8. c3 {[%clk
0:02:22.6]} 8... e5 {[%clk 0:02:30.1]} 9. Nbd2 {[%clk 0:02:07.5]} 9... O-O
{[%clk 0:02:05.6]} 10. h3 {[%clk 0:02:05.6]} 10... Bh5 {[%clk 0:02:02.7]} 11.
Ne4 {[%clk 0:01:52.8]} 11... Bb6 {[%clk 0:02:00.4]} 12. Qc2 {[%clk 0:01:45.1]}
12... h6 {[%clk 0:01:48.3]} 13. a3 {[%clk 0:01:37.4]} 13... f5 {[%clk
0:01:47.2]} 14. Ned2 {[%clk 0:01:33]} 14... Nde7 {[%clk 0:01:38.2]} 15. Nc4
{[%clk 0:01:22.5]} 15... Ng6 {[%clk 0:01:29.3]} 16. Re1 {[%clk 0:01:11.9]} 16...
Re8 {[%clk 0:01:05.6]} 17. Nh2 {[%clk 0:00:57.1]} 17... Nf8 {[%clk 0:00:57.3]}
18. Bxc6 {[%clk 0:00:46.6]} 18... bxc6 {[%clk 0:00:57.3]} 19. Nxe5 {[%clk
0:00:47.1]} 19... Qd6 {[%clk 0:00:40.1]} 20. d4 {[%clk 0:00:43.8]} 20... c5
{[%clk 0:00:31.2]} 21. Qxf5 {[%clk 0:00:27.7]} 21... g6 {[%clk 0:00:26.5]} 22.
Qf7+ {[%clk 0:00:27.8]} 22... Kh8 {[%clk 0:00:26.5]} 23. Bxh6 {[%clk 0:00:26.9]}
23... Re7 {[%clk 0:00:19.7]} 24. Bg7+ {[%clk 0:00:16.7]} 24... Kh7 {[%clk
0:00:18]} 25. Bxf8+ {[%clk 0:00:17.8]} 25... Rxf7 {[%clk 0:00:17.3]} 26. Bxd6
{[%clk 0:00:18.8]} 26... Rf6 {[%clk 0:00:12.4]} 27. Bxc5 {[%clk 0:00:18.7]}
27... Raf8 {[%clk 0:00:11.6]} 28. Bxf8 {[%clk 0:00:18.7]} 28... Rxf8 {[%clk
0:00:11.4]} 29. Nd7 {[%clk 0:00:19.8]} 29... Rd8 {[%clk 0:00:09.2]} 30. Nxb6
{[%clk 0:00:20.2]} 30... axb6 {[%clk 0:00:07.2]} 31. Re7+ {[%clk 0:00:20.4]} 1-0

[Event "*** Titled Tuesday 3|2 Blitz"]
[Site "Chess.com"]
[Date "2016.06.07"]
[Round "4"]
[White "Bentery"]
[Black "Dlugy"]
[Result "0-1"]
[WhiteElo "2436"]
[BlackElo "2604"]
[TimeControl "180+2"]
[EndTime "11:48:54 PDT"]
[Termination "Dlugy won by resignation"]

1. Nf3 {[%clk 0:03:01.9]} 1... Nf6 {[%clk 0:03:00.3]} 2. g3 {[%clk 0:03:03.1]}
2... g6 {[%clk 0:03:01.9]} 3. b3 {[%clk 0:03:04]} 3... Bg7 {[%clk 0:03:03.8]} 4.
Bb2 {[%clk 0:03:05.7]} 4... O-O {[%clk 0:03:05.5]} 5. Bg2 {[%clk 0:03:07.3]}
5... a5 {[%clk 0:03:06.2]} 6. c4 {[%clk 0:03:06.8]} 6... d6 {[%clk 0:03:04.3]}
7. O-O {[%clk 0:03:07]} 7... a4 {[%clk 0:03:04.5]} 8. b4 {[%clk 0:03:07.5]} 8...
e5 {[%clk 0:03:03.6]} 9. d3 {[%clk 0:03:04.9]} 9... Re8 {[%clk 0:02:55.1]} 10.
e4 {[%clk 0:02:32]} 10... Nbd7 {[%clk 0:02:49.6]} 11. a3 {[%clk 0:02:33.2]}
11... c5 {[%clk 0:02:50.5]} 12. Nc3 {[%clk 0:02:31.1]} 12... Nb6 {[%clk
0:02:46.2]} 13. Ne1 {[%clk 0:02:13.9]} 13... Nfd7 {[%clk 0:02:37.3]} 14. Nb5
{[%clk 0:02:12.5]} 14... Nf8 {[%clk 0:02:37.4]} 15. f4 {[%clk 0:02:07.7]} 15...
Ne6 {[%clk 0:02:36.5]} 16. f5 {[%clk 0:01:52.9]} 16... Nd4 {[%clk 0:02:37.2]}
17. Nxd4 {[%clk 0:01:45.6]} 17... exd4 {[%clk 0:02:28.6]} 18. g4 {[%clk
0:01:38]} 18... Nd7 {[%clk 0:02:25.7]} 19. Nf3 {[%clk 0:01:36]} 19... Ne5 {[%clk
0:02:24.6]} 20. bxc5 {[%clk 0:01:33.8]} 20... Nxg4 {[%clk 0:02:15.7]} 21. fxg6
{[%clk 0:01:33.9]} 21... fxg6 {[%clk 0:02:06.6]} 22. cxd6 {[%clk 0:00:53.2]}
22... Ne3 {[%clk 0:02:03.4]} 23. Qd2 {[%clk 0:00:54.5]} 23... Nxf1 {[%clk
0:02:04.1]} 24. Rxf1 {[%clk 0:00:56.4]} 24... Qxd6 {[%clk 0:02:05.3]} 25. Qf2
{[%clk 0:00:54.3]} 25... Bg4 {[%clk 0:01:45.5]} 26. e5 {[%clk 0:00:37.7]} 26...
Qd7 {[%clk 0:01:01.5]} 27. Bxd4 {[%clk 0:00:17.4]} 27... Bxf3 {[%clk 0:00:56.8]}
28. Bxf3 {[%clk 0:00:17.9]} 28... Rxe5 {[%clk 0:00:46.6]} 29. Bxe5 {[%clk
0:00:17.8]} 29... Bxe5 {[%clk 0:00:47.7]} 30. Bd5+ {[%clk 0:00:19.6]} 30... Kh8
{[%clk 0:00:48.9]} 31. Qg2 {[%clk 0:00:19]} 31... Re8 {[%clk 0:00:36.6]} 32. Rf7
{[%clk 0:00:17]} 32... Qd6 {[%clk 0:00:37.7]} 33. Qh3 {[%clk 0:00:17.2]} 33...
Bd4+ {[%clk 0:00:35.4]} 34. Kf1 {[%clk 0:00:18.4]} 34... Bg7 {[%clk 0:00:36.7]}
35. Qd7 {[%clk 0:00:17.4]} 35... Qe5 {[%clk 0:00:25.4]} 36. Rxg7 {[%clk
0:00:10.2]} 36... Qe2+ {[%clk 0:00:24.9]} 37. Kg1 {[%clk 0:00:11.2]} 37... Qe1+
{[%clk 0:00:23.8]} 38. Kg2 {[%clk 0:00:12.7]} 38... Re2+ {[%clk 0:00:25]} 39.
Kh3 {[%clk 0:00:14]} 39... Qf1+ {[%clk 0:00:26.1]} 40. Kh4 {[%clk 0:00:14.9]}
40... Qf4+ {[%clk 0:00:26.6]} 41. Qg4 {[%clk 0:00:14.2]} 0-1

[Event "*** Titled Tuesday 3|2 Blitz"]
[Site "Chess.com"]
[Date "2016.06.07"]
[Round "4"]
[White "dabee"]
[Black "Iuri_Shkuro"]
[Result "1/2-1/2"]
[WhiteElo "2429"]
[BlackElo "2398"]
[TimeControl "180+2"]
[EndTime "11:49:00 PDT"]
[Termination "Game drawn by agreement"]

1. d4 {[%clk 0:03:01.9]} 1... Nc6 {[%clk 0:03:00]} 2. Nf3 {[%clk 0:02:59.7]}
2... d6 {[%clk 0:03:00.5]} 3. e4 {[%clk 0:02:57.5]} 3... Nf6 {[%clk 0:02:59.1]}
4. Nbd2 {[%clk 0:02:52.2]} 4... g6 {[%clk 0:02:59.4]} 5. c3 {[%clk 0:02:49.3]}
5... Bg7 {[%clk 0:03:00.1]} 6. Bc4 {[%clk 0:02:46.7]} 6... O-O {[%clk
0:03:00.3]} 7. O-O {[%clk 0:02:47.4]} 7... a6 {[%clk 0:02:45.7]} 8. a4 {[%clk
0:02:46.8]} 8... e5 {[%clk 0:02:38.6]} 9. dxe5 {[%clk 0:02:45.9]} 9... dxe5
{[%clk 0:02:38.4]} 10. b4 {[%clk 0:02:39.4]} 10... Nh5 {[%clk 0:02:32.1]} 11.
Ba3 {[%clk 0:02:28.7]} 11... Re8 {[%clk 0:02:10.9]} 12. Qb3 {[%clk 0:02:28.1]}
12... Be6 {[%clk 0:02:10.2]} 13. Rfd1 {[%clk 0:02:18.4]} 13... Qf6 {[%clk
0:02:07.8]} 14. Bxe6 {[%clk 0:02:05.3]} 14... Rxe6 {[%clk 0:02:04.4]} 15. Nc4
{[%clk 0:02:03.4]} 15... b5 {[%clk 0:01:42.5]} 16. Ne3 {[%clk 0:01:57.5]} 16...
Rd6 {[%clk 0:01:39.7]} 17. Rxd6 {[%clk 0:01:42.6]} 17... Qxd6 {[%clk 0:01:32.3]}
18. Rd1 {[%clk 0:01:41.2]} 18... Qe6 {[%clk 0:01:22.9]} 19. Qxe6 {[%clk
0:01:02.9]} 19... fxe6 {[%clk 0:01:23.5]} 20. Rd7 {[%clk 0:00:56.2]} 20... Rc8
{[%clk 0:01:19.7]} 21. Ng5 {[%clk 0:00:33.6]} 21... Nf6 {[%clk 0:01:18.5]} 22.
Rd1 {[%clk 0:00:27.8]} 22... Re8 {[%clk 0:01:17]} 23. axb5 {[%clk 0:00:17.9]}
23... axb5 {[%clk 0:01:17.4]} 24. c4 {[%clk 0:00:18.9]} 24... h6 {[%clk
0:01:11.6]} 25. Nf3 {[%clk 0:00:19.1]} 25... Nxe4 {[%clk 0:01:10.1]} 26. cxb5
{[%clk 0:00:18.9]} 26... Nd4 {[%clk 0:01:10.6]} 27. Bb2 {[%clk 0:00:13.2]} 27...
Nxb5 {[%clk 0:00:59.9]} 28. Bxe5 {[%clk 0:00:04.5]} 28... Nbd6 {[%clk
0:00:59.5]} 29. Bxg7 {[%clk 0:00:03.4]} 29... Kxg7 {[%clk 0:01:00.1]} 30. Nd4
{[%clk 0:00:04.5]} 30... Kf7 {[%clk 0:00:56.8]} 31. Rc1 {[%clk 0:00:04.5]} 31...
Rc8 {[%clk 0:00:50.2]} 32. f3 {[%clk 0:00:04.4]} 32... Nf6 {[%clk 0:00:50.6]}
33. b5 {[%clk 0:00:03.4]} 33... Nd7 {[%clk 0:00:46.4]} 34. Nc4 {[%clk
0:00:02.1]} 34... Nxc4 {[%clk 0:00:39.7]} 35. Rxc4 {[%clk 0:00:02.9]} 35... Nb6
{[%clk 0:00:36.7]} 36. Rc6 {[%clk 0:00:03.9]} 36... e5 {[%clk 0:00:27.9]}
1/2-1/2

[Event "*** Titled Tuesday 3|2 Blitz"]
[Site "Chess.com"]
[Date "2016.06.07"]
[Round "4"]
[White "GM_Levan_Pantsulaia"]
[Black "Bigfish1995"]
[Result "0-1"]
[WhiteElo "2481"]
[BlackElo "2610"]
[TimeControl "180+2"]
[EndTime "11:49:09 PDT"]
[Termination "Bigfish1995 won by resignation"]

1. Nf3 {[%clk 0:02:34.5]} 1... g6 {[%clk 0:03:00.4]} 2. g3 {[%clk 0:02:35.2]}
2... Bg7 {[%clk 0:03:01.7]} 3. Bg2 {[%clk 0:02:36.7]} 3... c5 {[%clk 0:03:03.5]}
4. c4 {[%clk 0:02:34.8]} 4... Nc6 {[%clk 0:03:04.7]} 5. Nc3 {[%clk 0:02:36]}
5... d6 {[%clk 0:03:05.8]} 6. O-O {[%clk 0:02:29.1]} 6... Qd7 {[%clk 0:03:05.7]}
7. e3 {[%clk 0:02:26.8]} 7... Bxc3 {[%clk 0:03:06.2]} 8. bxc3 {[%clk 0:02:25.2]}
8... b6 {[%clk 0:03:07.9]} 9. d3 {[%clk 0:02:23.6]} 9... Bb7 {[%clk 0:03:09.2]}
10. e4 {[%clk 0:02:24.6]} 10... O-O-O {[%clk 0:03:09.7]} 11. a4 {[%clk
0:02:23.9]} 11... f5 {[%clk 0:03:09.4]} 12. Ng5 {[%clk 0:02:22.4]} 12... Rf8
{[%clk 0:03:04.1]} 13. exf5 {[%clk 0:02:09.2]} 13... gxf5 {[%clk 0:03:04.1]} 14.
Bd5 {[%clk 0:02:09.1]} 14... Kb8 {[%clk 0:02:58.1]} 15. Ne6 {[%clk 0:01:58.9]}
15... Rc8 {[%clk 0:02:55.5]} 16. Bg5 {[%clk 0:01:54.4]} 16... h6 {[%clk
0:02:49]} 17. Bh4 {[%clk 0:01:50.9]} 17... Ne5 {[%clk 0:02:37.4]} 18. a5 {[%clk
0:01:51]} 18... b5 {[%clk 0:02:28]} 19. a6 {[%clk 0:01:50.7]} 19... Bc6 {[%clk
0:02:22.5]} 20. Rb1 {[%clk 0:01:48.2]} 20... Ka8 {[%clk 0:02:21]} 21. Qh5 {[%clk
0:01:41]} 21... Nxd3 {[%clk 0:01:11.2]} 22. Qxf5 {[%clk 0:01:40.3]} 22... Ne5
{[%clk 0:01:11.9]} 23. Bxc6+ {[%clk 0:00:57.3]} 23... Qxc6 {[%clk 0:01:05.6]}
24. cxb5 {[%clk 0:00:38.5]} 24... Nf3+ {[%clk 0:01:06.1]} 25. Kh1 {[%clk
0:00:37.1]} 25... Nxh4+ {[%clk 0:01:07.5]} 26. bxc6 {[%clk 0:00:36]} 26... Nxf5
{[%clk 0:01:09.1]} 27. Rb7 {[%clk 0:00:26.6]} 27... Rxc6 {[%clk 0:00:57.3]} 28.
Nc7+ {[%clk 0:00:13.2]} 28... Rxc7 {[%clk 0:00:58.2]} 29. Rxc7 {[%clk
0:00:14.6]} 29... Nf6 {[%clk 0:00:56.3]} 30. Rb1 {[%clk 0:00:15.2]} 30... Nd5
{[%clk 0:00:56.3]} 31. Rcb7 {[%clk 0:00:11.5]} 31... Nxc3 {[%clk 0:00:57]} 32.
Re1 {[%clk 0:00:12.4]} 32... Nd5 {[%clk 0:00:57.4]} 33. Kg2 {[%clk 0:00:11.1]}
33... Nd4 {[%clk 0:00:57.2]} 34. h4 {[%clk 0:00:07.8]} 34... c4 {[%clk
0:00:56.2]} 35. Re4 {[%clk 0:00:07.3]} 35... e5 {[%clk 0:00:57.2]} 36. Rd7
{[%clk 0:00:06.6]} 36... c3 {[%clk 0:00:58.1]} 37. Rxd6 {[%clk 0:00:07.8]} 37...
c2 {[%clk 0:00:59]} 38. Re1 {[%clk 0:00:08.9]} 38... Nb4 {[%clk 0:00:58.9]} 39.
Rd7 {[%clk 0:00:04.4]} 39... Nd3 {[%clk 0:00:58.8]} 40. Ra1 {[%clk 0:00:03.2]}
40... c1=Q {[%clk 0:00:55.2]} 41. Rxc1 {[%clk 0:00:04.7]} 41... Nxc1 {[%clk
0:00:56.4]} 42. g4 {[%clk 0:00:06.6]} 42... Nd3 {[%clk 0:00:56.7]} 43. Kg3
{[%clk 0:00:07.9]} 43... Nf4 {[%clk 0:00:57.7]} 44. h5 {[%clk 0:00:09.1]} 44...
Rg8 {[%clk 0:00:57.5]} 45. f3 {[%clk 0:00:09.8]} 45... Nxh5+ {[%clk 0:00:58.1]}
46. Kf2 {[%clk 0:00:11.5]} 46... Nf4 {[%clk 0:00:57]} 0-1

[Event "*** Titled Tuesday 3|2 Blitz"]
[Site "Chess.com"]
[Date "2016.06.07"]
[Round "4"]
[White "platy3"]
[Black "pKiLz5Rn9b"]
[Result "1-0"]
[WhiteElo "2689"]
[BlackElo "2476"]
[TimeControl "180+2"]
[EndTime "11:49:22 PDT"]
[Termination "platy3 won by resignation"]

1. e4 {[%clk 0:03:01.9]} 1... e6 {[%clk 0:03:00.8]} 2. d4 {[%clk 0:03:02.5]}
2... d5 {[%clk 0:03:02.1]} 3. Nd2 {[%clk 0:03:02.7]} 3... Nf6 {[%clk 0:03:03.2]}
4. e5 {[%clk 0:03:03.6]} 4... Nfd7 {[%clk 0:03:04.5]} 5. Bd3 {[%clk 0:03:05.2]}
5... c5 {[%clk 0:03:04.6]} 6. c3 {[%clk 0:03:06.8]} 6... Nc6 {[%clk 0:03:06]} 7.
Ngf3 {[%clk 0:03:08.4]} 7... Be7 {[%clk 0:03:05.7]} 8. O-O {[%clk 0:03:09.4]}
8... a5 {[%clk 0:03:07.1]} 9. Re1 {[%clk 0:02:54.8]} 9... a4 {[%clk 0:03:07.5]}
10. Nf1 {[%clk 0:02:51.5]} 10... cxd4 {[%clk 0:03:06.3]} 11. cxd4 {[%clk
0:02:52.2]} 11... Nb6 {[%clk 0:03:07.7]} 12. Ng3 {[%clk 0:02:52.4]} 12... h5
{[%clk 0:03:08]} 13. h3 {[%clk 0:02:45.4]} 13... h4 {[%clk 0:03:06.2]} 14. Nf1
{[%clk 0:02:46.4]} 14... Bd7 {[%clk 0:02:56.5]} 15. Bd2 {[%clk 0:02:46.7]} 15...
Nb4 {[%clk 0:02:49.8]} 16. Be2 {[%clk 0:02:41.5]} 16... Nc4 {[%clk 0:02:48.1]}
17. Bc3 {[%clk 0:02:36.5]} 17... Rc8 {[%clk 0:02:41.3]} 18. a3 {[%clk
0:02:33.9]} 18... Nc6 {[%clk 0:02:40.3]} 19. Bxc4 {[%clk 0:02:34.3]} 19... dxc4
{[%clk 0:02:41]} 20. Ne3 {[%clk 0:02:35.1]} 20... Na7 {[%clk 0:02:11.7]} 21. d5
{[%clk 0:02:19.6]} 21... Bc5 {[%clk 0:02:11.8]} 22. Nd4 {[%clk 0:01:58.5]} 22...
Bxd4 {[%clk 0:01:27.5]} 23. Qxd4 {[%clk 0:01:45.7]} 23... Nb5 {[%clk 0:01:20.9]}
24. Qg4 {[%clk 0:01:46.5]} 24... Kf8 {[%clk 0:01:09]} 25. Bb4+ {[%clk 0:01:33]}
25... Kg8 {[%clk 0:01:08.8]} 26. d6 {[%clk 0:01:30.4]} 26... Rh6 {[%clk
0:01:05.5]} 27. Rac1 {[%clk 0:01:24.9]} 27... Rg6 {[%clk 0:01:03.2]} 28. Qf4
{[%clk 0:01:26]} 28... Qb6 {[%clk 0:00:58]} 29. Nxc4 {[%clk 0:01:22.3]} 29...
Qd4 {[%clk 0:00:58.1]} 30. Qxd4 {[%clk 0:00:58.4]} 30... Nxd4 {[%clk 0:00:58.6]}
31. Kh2 {[%clk 0:00:55.4]} 31... Bc6 {[%clk 0:00:40.3]} 32. Ne3 {[%clk 0:00:53]}
32... Rd8 {[%clk 0:00:39.6]} 33. Red1 {[%clk 0:00:46.1]} 33... Nf5 {[%clk
0:00:34.3]} 34. Rxc6 {[%clk 0:00:38.4]} 34... bxc6 {[%clk 0:00:35.4]} 35. Nxf5
{[%clk 0:00:26.5]} 35... exf5 {[%clk 0:00:36.5]} 36. d7 {[%clk 0:00:28.1]} 36...
Re6 {[%clk 0:00:20.4]} 37. Ba5 {[%clk 0:00:28.6]} 37... Rxd7 {[%clk 0:00:21.9]}
38. Rxd7 {[%clk 0:00:29]} 38... Rxe5 {[%clk 0:00:23.8]} 39. Bc3 {[%clk
0:00:29.6]} 39... Re4 {[%clk 0:00:24.1]} 40. Rd4 {[%clk 0:00:29.7]} 40... Rxd4
{[%clk 0:00:23.5]} 41. Bxd4 {[%clk 0:00:30.7]} 41... f6 {[%clk 0:00:24.8]} 42.
b3 {[%clk 0:00:23.6]} 42... axb3 {[%clk 0:00:18.8]} 43. a4 {[%clk 0:00:24.6]}
43... c5 {[%clk 0:00:20.1]} 44. Bc3 {[%clk 0:00:23.1]} 44... b2 {[%clk 0:00:15]}
45. Bxb2 {[%clk 0:00:23.3]} 1-0

[Event "*** Titled Tuesday 3|2 Blitz"]
[Site "Chess.com"]
[Date "2016.06.07"]
[Round "4"]
[White "StoreySniper"]
[Black "cassoulet"]
[Result "0-1"]
[WhiteElo "2314"]
[BlackElo "2340"]
[TimeControl "180+2"]
[EndTime "11:49:23 PDT"]
[Termination "cassoulet won by resignation"]

1. e4 {[%clk 0:03:01.9]} 1... c5 {[%clk 0:03:00.6]} 2. Nf3 {[%clk 0:03:01.9]}
2... d6 {[%clk 0:03:01.7]} 3. d4 {[%clk 0:03:03.4]} 3... cxd4 {[%clk 0:03:03.6]}
4. Nxd4 {[%clk 0:03:05.3]} 4... Nf6 {[%clk 0:03:05.2]} 5. f3 {[%clk 0:03:06.6]}
5... e5 {[%clk 0:03:04.7]} 6. Nb3 {[%clk 0:03:07.4]} 6... Be6 {[%clk 0:03:06.2]}
7. Bg5 {[%clk 0:03:07.8]} 7... Nbd7 {[%clk 0:03:07]} 8. c4 {[%clk 0:03:08.2]}
8... Rc8 {[%clk 0:03:07.2]} 9. N3d2 {[%clk 0:03:06.1]} 9... Be7 {[%clk 0:03:08]}
10. Be3 {[%clk 0:03:01.8]} 10... a6 {[%clk 0:03:08.2]} 11. Nc3 {[%clk
0:03:02.7]} 11... O-O {[%clk 0:03:09]} 12. Be2 {[%clk 0:03:02.5]} 12... Nc5
{[%clk 0:03:08.6]} 13. b4 {[%clk 0:02:53.4]} 13... Ncd7 {[%clk 0:03:07.6]} 14.
Rc1 {[%clk 0:02:45.3]} 14... Nh5 {[%clk 0:03:06.2]} 15. Nd5 {[%clk 0:02:35.7]}
15... Bg5 {[%clk 0:02:56.7]} 16. Qb3 {[%clk 0:02:33.8]} 16... Bxd5 {[%clk
0:02:52.7]} 17. exd5 {[%clk 0:02:27]} 17... Bxe3 {[%clk 0:02:53.7]} 18. Qxe3
{[%clk 0:02:27.5]} 18... Qh4+ {[%clk 0:02:55.3]} 19. Qf2 {[%clk 0:02:15.8]}
19... Qg5 {[%clk 0:02:56.2]} 20. h4 {[%clk 0:02:03.8]} 20... Qh6 {[%clk
0:02:55.6]} 21. g3 {[%clk 0:01:53.8]} 21... f5 {[%clk 0:02:55.1]} 22. c5 {[%clk
0:01:35.2]} 22... dxc5 {[%clk 0:02:49.5]} 23. bxc5 {[%clk 0:01:36.2]} 23... Nhf6
{[%clk 0:02:30.9]} 24. d6 {[%clk 0:01:26.7]} 24... Rfe8 {[%clk 0:02:23.1]} 25.
Nb3 {[%clk 0:01:24.6]} 25... e4 {[%clk 0:02:10.5]} 26. f4 {[%clk 0:01:21.9]}
26... e3 {[%clk 0:02:10.4]} 27. Qf3 {[%clk 0:01:20.2]} 27... Ne4 {[%clk
0:02:11.2]} 28. O-O {[%clk 0:01:15.7]} 28... Nd2 {[%clk 0:02:05.2]} 29. Nxd2
{[%clk 0:01:11.6]} 29... exd2 {[%clk 0:02:07.1]} 30. Qd5+ {[%clk 0:01:13]} 30...
Kh8 {[%clk 0:02:05.9]} 31. Qxd2 {[%clk 0:01:14.6]} 31... Qg6 {[%clk 0:01:44.7]}
32. Kh2 {[%clk 0:01:10.6]} 32... Rxc5 {[%clk 0:01:30]} 33. Rxc5 {[%clk
0:01:08.9]} 33... Nxc5 {[%clk 0:01:31.9]} 34. d7 {[%clk 0:00:54.2]} 34... Nxd7
{[%clk 0:01:30.4]} 35. Bf3 {[%clk 0:00:42.4]} 35... Nf6 {[%clk 0:01:27.7]} 36.
Re1 {[%clk 0:00:35.9]} 36... h6 {[%clk 0:01:20.5]} 37. Rxe8+ {[%clk 0:00:35.8]}
37... Qxe8 {[%clk 0:01:22.4]} 38. Bxb7 {[%clk 0:00:28.7]} 38... Ng4+ {[%clk
0:01:22.3]} 39. Kg2 {[%clk 0:00:29.3]} 39... Qb5 {[%clk 0:01:21.4]} 40. Bf3
{[%clk 0:00:29.3]} 40... Nf6 {[%clk 0:01:22.1]} 41. Qc2 {[%clk 0:00:24.3]} 41...
h5 {[%clk 0:01:20.7]} 42. a4 {[%clk 0:00:24.7]} 42... Qa5 {[%clk 0:01:18.5]} 43.
Qe2 {[%clk 0:00:20.9]} 43... Qxa4 {[%clk 0:01:12.4]} 44. Bxh5 {[%clk 0:00:21]}
44... Kh7 {[%clk 0:01:04.7]} 45. Bf3 {[%clk 0:00:21.9]} 45... a5 {[%clk
0:01:03.8]} 46. Qe5 {[%clk 0:00:22.2]} 46... Qc2+ {[%clk 0:01:04.5]} 47. Kh3
{[%clk 0:00:22.3]} 47... a4 {[%clk 0:01:05.1]} 48. h5 {[%clk 0:00:22.1]} 48...
a3 {[%clk 0:01:04.7]} 49. g4 {[%clk 0:00:22.5]} 49... fxg4+ {[%clk 0:01:04.7]}
50. Bxg4 {[%clk 0:00:23.8]} 50... Qd3+ {[%clk 0:01:05.1]} 51. Kh4 {[%clk
0:00:24.3]} 51... Nxg4 {[%clk 0:01:05.9]} 52. Kxg4 {[%clk 0:00:23.3]} 52... a2
{[%clk 0:01:06.7]} 53. f5 {[%clk 0:00:24]} 53... Qd1+ {[%clk 0:01:05.6]} 54. Kg5
{[%clk 0:00:24.5]} 54... Qg1+ {[%clk 0:01:06]} 55. Kh4 {[%clk 0:00:25.4]} 55...
Qh1+ {[%clk 0:01:05.9]} 56. Kg5 {[%clk 0:00:25.8]} 56... a1=Q {[%clk 0:01:04.6]}
0-1

[Event "*** Titled Tuesday 3|2 Blitz"]
[Site "Chess.com"]
[Date "2016.06.07"]
[Round "4"]
[White "FearlessKing64"]
[Black "GianmarcoVaR"]
[Result "0-1"]
[WhiteElo "2075"]
[BlackElo "2340"]
[TimeControl "180+2"]
[EndTime "11:49:33 PDT"]
[Termination "GianmarcoVaR won by resignation"]

1. e4 {[%clk 0:03:01.9]} 1... c5 {[%clk 0:02:54.6]} 2. Nf3 {[%clk 0:03:02.6]}
2... d6 {[%clk 0:02:55.8]} 3. d4 {[%clk 0:03:03.7]} 3... cxd4 {[%clk 0:02:57.7]}
4. Nxd4 {[%clk 0:03:05.1]} 4... Nf6 {[%clk 0:02:59.3]} 5. f3 {[%clk 0:03:06.6]}
5... e5 {[%clk 0:02:53]} 6. Bb5+ {[%clk 0:03:07.2]} 6... Bd7 {[%clk 0:02:28.1]}
7. Bxd7+ {[%clk 0:03:07.9]} 7... Qxd7 {[%clk 0:02:29.2]} 8. Nf5 {[%clk
0:03:08.9]} 8... h6 {[%clk 0:02:24.3]} 9. c4 {[%clk 0:02:54.4]} 9... Be7 {[%clk
0:02:20.5]} 10. Nxg7+ {[%clk 0:02:53.4]} 10... Kf8 {[%clk 0:02:17.9]} 11. Nf5
{[%clk 0:02:53.3]} 11... h5 {[%clk 0:02:16.4]} 12. Nc3 {[%clk 0:02:47.4]} 12...
Nc6 {[%clk 0:02:12.8]} 13. O-O {[%clk 0:02:45.2]} 13... a6 {[%clk 0:01:53.2]}
14. Bg5 {[%clk 0:02:41.1]} 14... Qe6 {[%clk 0:01:37.1]} 15. Nd5 {[%clk
0:02:24.2]} 15... Bd8 {[%clk 0:01:14]} 16. Qd2 {[%clk 0:02:10.4]} 16... Ne8
{[%clk 0:01:09]} 17. Bh6+ {[%clk 0:02:00.3]} 17... Kg8 {[%clk 0:01:10.2]} 18.
Bg5 {[%clk 0:01:46.6]} 18... f6 {[%clk 0:01:07.1]} 19. Be3 {[%clk 0:01:45.4]}
19... Rc8 {[%clk 0:01:07.1]} 20. b3 {[%clk 0:01:42.6]} 20... Ng7 {[%clk
0:01:04]} 21. Nxg7 {[%clk 0:01:15.4]} 21... Kxg7 {[%clk 0:01:05.2]} 22. Rad1
{[%clk 0:01:13.4]} 22... Ne7 {[%clk 0:00:58.9]} 23. Nc3 {[%clk 0:01:08.8]} 23...
Bc7 {[%clk 0:00:55.5]} 24. f4 {[%clk 0:01:09.7]} 24... b5 {[%clk 0:00:42]} 25.
f5 {[%clk 0:01:10.5]} 25... Qd7 {[%clk 0:00:27.9]} 26. cxb5 {[%clk 0:01:09.2]}
26... Ba5 {[%clk 0:00:28.6]} 27. Rc1 {[%clk 0:01:06.8]} 27... Qc7 {[%clk
0:00:26.5]} 28. Rf3 {[%clk 0:00:42.8]} 28... Kf7 {[%clk 0:00:22.9]} 29. Bf2
{[%clk 0:00:38.7]} 29... axb5 {[%clk 0:00:21.5]} 30. a3 {[%clk 0:00:38.6]} 30...
b4 {[%clk 0:00:20.6]} 31. Ne2 {[%clk 0:00:38]} 31... Qb7 {[%clk 0:00:21]} 32. a4
{[%clk 0:00:38.8]} 32... Qxe4 {[%clk 0:00:20.4]} 33. Ng3 {[%clk 0:00:37.7]}
33... Rxc1+ {[%clk 0:00:18.4]} 34. Qxc1 {[%clk 0:00:36.3]} 34... Qc6 {[%clk
0:00:19.2]} 35. Qe1 {[%clk 0:00:27.4]} 35... h4 {[%clk 0:00:19.2]} 36. Ne4
{[%clk 0:00:27]} 36... h3 {[%clk 0:00:20.1]} 37. g3 {[%clk 0:00:27.7]} 37... d5
{[%clk 0:00:18.3]} 38. Nd2 {[%clk 0:00:25.8]} 38... Qc2 {[%clk 0:00:18.5]} 39.
Re3 {[%clk 0:00:20.9]} 39... Nxf5 {[%clk 0:00:17]} 40. Rxe5 {[%clk 0:00:19.1]}
40... fxe5 {[%clk 0:00:15.1]} 41. Qxe5 {[%clk 0:00:21]} 41... Re8 {[%clk
0:00:09.9]} 42. Qxd5+ {[%clk 0:00:19.6]} 42... Re6 {[%clk 0:00:11]} 43. Qxa5
{[%clk 0:00:19.8]} 43... Qxd2 {[%clk 0:00:11.3]} 44. Qc7+ {[%clk 0:00:17.7]}
44... Ne7 {[%clk 0:00:11.4]} 45. Qf4+ {[%clk 0:00:17.8]} 45... Qxf4 {[%clk
0:00:12.2]} 46. gxf4 {[%clk 0:00:18.8]} 46... Nd5 {[%clk 0:00:13.5]} 0-1